fUSD/lending_fUSD_20250417
["ID","MTS","AMOUNT","RATE_DAILY","PERIOD"]
[358223038,1744855854362,-646.05,0.00052054,120]
[358223039,1744855854373,-500.0,0.00052054,120]
[358223040,1744855854382,-500.0,0.00052054,120]
[358223041,1744855854391,-500.0,0.00052054,120]
[358223042,1744855854401,-1626.24,0.00052054,120]
[358223043,1744855854412,-500.0,0.00052054,120]
[358223044,1744855854423,-510.84345347,0.00052054,120]
[358223045,1744855854432,-1353.23,0.00052054,120]
[358223046,1744855854443,-637.62772848,0.00052054,120]
[358223047,1744855854454,-500.0,0.00052054,120]
[358223048,1744855854466,-500.0,0.00052054,120]
[358223049,1744855854476,-597.75759127,0.00052054,120]
[358223050,1744855854486,-550.36,0.00052054,120]
[358223051,1744855854496,-2059.92,0.00052054,120]
[358223052,1744855854506,-500.0,0.00052054,120]
[358223053,1744855854516,-1725.27,0.00052054,120]
[358223054,1744855854526,-500.0,0.00052054,120]
[358223055,1744855854536,-933.94,0.00052054,120]
[358223056,1744855854547,-500.0,0.00052054,120]
[358223057,1744855854556,-500.0,0.00052054,120]
[358223058,1744855854566,-500.0,0.00052054,120]
[358223059,1744855854576,-500.0,0.00052054,120]
[358223060,1744855854588,-500.0,0.00052054,120]
[358223061,1744855854598,-500.0,0.00052054,120]
[358223062,1744855854608,-1025.95,0.00052054,120]
[358223063,1744855854619,-500.0,0.00052054,120]
[358223064,1744855854630,-500.0,0.00052054,120]
[358223065,1744855854641,-1000.0,0.00052054,120]
[358223066,1744855854651,-500.0,0.00052054,120]
[358223067,1744855854662,-500.0,0.00052054,120]
[358223068,1744855854677,-500.0,0.00052054,120]
[358223069,1744855854687,-541.1,0.00052054,120]
[358223070,1744855854696,-500.0,0.00052054,120]
[358223071,1744855854707,-500.0,0.00052054,120]
[358223072,1744855854716,-500.0,0.00052054,120]
[358223073,1744855854728,-1299.81,0.00052054,120]
[358223074,1744855854737,-500.0,0.00052054,120]
[358223075,1744855854747,-500.0,0.00052054,120]
[358223076,1744855854758,-1002.82,0.00052054,120]
[358223077,1744855854767,-1004.03,0.00052054,120]
[358223078,1744855854777,-500.0,0.00052054,120]
[358223079,1744855854787,-500.0,0.00052054,120]
[358223080,1744855854796,-171.366624,0.00052054,120]
[358223081,1744855854806,-500.0,0.00052054,120]
[358223082,1744855854815,-500.0,0.00052054,120]
[358223083,1744855854826,-500.0,0.00052054,120]
[358223084,1744855854836,-500.0,0.00052054,120]
[358223085,1744855854847,-500.0,0.00052054,120]
[358223086,1744855854857,-500.0,0.00052054,120]
[358223087,1744855854867,-500.0,0.00052054,120]
[358223088,1744855854877,-500.0,0.00052054,120]
[358223089,1744855854888,-500.0,0.00052054,120]
[358223090,1744855854898,-540.02,0.00052054,120]
[358223091,1744855854907,-404.10770288,0.00052054,120]
[358223092,1744855854916,-500.0,0.00052054,120]
[358223093,1744855854927,-154.386349,0.00052054,120]
[358223094,1744855854935,-500.0,0.00052054,30]
[358223095,1744855854944,-984.62,0.00052054,120]
[358223096,1744855854953,-500.0,0.00052054,120]
[358223097,1744855854962,-536.13,0.00052054,120]
[358223098,1744855854972,-500.0,0.00052054,120]
[358223099,1744855854981,-500.0,0.00052054,120]
[358223100,1744855854991,-517.25,0.00052054,120]
[358223101,1744855855002,-153.090262,0.00052054,120]
[358223102,1744855855012,-1179.4,0.00052054,35]
[358223103,1744855855022,-500.0,0.00052054,120]
[358223104,1744855855032,-500.0,0.00052054,120]
[358223105,1744855855042,-159.778617,0.00052054,120]
[358223106,1744855855053,-500.0,0.00052054,120]
[358223107,1744855855063,-500.0,0.00052054,120]
[358223108,1744855855072,-388.94898358,0.00052054,120]
[358223109,1744855855082,-500.0,0.00052054,120]
[358223110,1744855855091,-500.0,0.00052054,120]
[358223111,1744855855101,-847.83,0.00052054,120]
[358223112,1744855855111,-526.70792932,0.00052054,120]
[358223113,1744855855120,-500.0,0.00052054,2]
[358223114,1744855855130,-1513.27,0.00052054,120]
[358223115,1744855855139,-524.19968664,0.00052054,120]
[358223116,1744855855150,-931.79,0.00052054,120]
[358223117,1744855855159,-500.0,0.00052054,120]
[358223118,1744855855171,-909.15,0.00052054,120]
[358223119,1744855855181,-743.64,0.00052054,120]
[358223120,1744855855191,-500.0,0.00052054,120]
[358223121,1744855855201,-500.0,0.00052054,120]
[358223122,1744855855212,-500.0,0.00052073,10]
[358223123,1744855855222,-501.19119677,0.00052073,10]
[358223124,1744855855232,-2000.0,0.000521,2]
[358223125,1744855855241,-250.0,0.000521,2]
[358223126,1744855855252,-857.0,0.000521,2]
[358223127,1744855855263,-487.07523988,0.00052166,15]
[358223128,1744855855273,-270.28,0.00052201,30]
[358223129,1744855855283,-172.02502002,0.00052218,120]
[358223130,1744855855293,-172.02502001,0.00052246,120]
[358223131,1744855855304,-172.02502001,0.00052273,120]
[358223132,1744855855313,-300.57843307,0.00052327,120]
[358223133,1744855855324,-353.37546169,0.00052327,120]
[358223134,1744855855333,-301.4875886,0.00052327,31]
[358223135,1744855855341,-172.70522053,0.00052327,120]
[358223136,1744855855351,-336.18669057,0.00052327,120]
[358223137,1744855855358,-2930.01,0.00052327,2]
[358223138,1744855855366,-500.0,0.00052327,120]
[358223139,1744855855375,-500.0,0.00052327,120]
[358223140,1744855855384,-604.96331683,0.00052327,120]
[358223141,1744855855394,-500.0,0.00052327,120]
[358223142,1744855855403,-299.87900823,0.00052327,120]
[358223143,1744856462019,250.0,0.00017,2]
[358223144,1744856463092,300.0,0.00019,2]
[358223145,1744856710884,2769.79721167,0.000154,2]
[358223146,1744856720590,845.0600491,9e-05,2]
[358223147,1744856726567,991.65463,0.000108,2]
[358223148,1744856729108,277.4776298,0.00011,2]
[358223149,1744856737634,250.44403476,9e-05,2]
[358223150,1744856787584,1183.24517171,0.0002,5]
[358223151,1744856833996,331.44650945,0.0002301,120]
[358223152,1744856836119,-157.5530901,0.0003,20]
[358223153,1744856836143,-477.16713275,0.00031,120]
[358223154,1744856837188,343.43256494,0.00015,2]
[358223155,1744856841787,1407.52946065,0.0002,5]
[358223157,1744856854747,-158.16,0.00024932,2]
[358223158,1744856854770,-841.42160897,0.00031,120]
[358223159,1744856857446,-161.47111324,0.00023,15]
[358223160,1744856883530,-186.16486842,0.00023,15]
[358223161,1744856887304,-200.0,0.00030613,30]
[358223162,1744856922529,-250.0,0.00022,7]
[358223163,1744856925110,1013.0,0.0002,6]
[358223164,1744856928270,151.49078384,0.000231,120]
[358223167,1744856963106,-513.19019338,0.00022,7]
[358223168,1744856963126,-218.39353314,0.000229,2]
[358223169,1744856963148,-639.76624613,0.00023,15]
[358223177,1744857032555,-300.0,0.00022999,2]
[358223179,1744857032566,-300.0,0.00022999,2]
[358223181,1744857032574,-25809.90029643,0.00023,15]
[358223183,1744857032582,-500.0,0.00023,2]
[358223185,1744857032590,-599.999999,0.0002488,7]
[358223187,1744857032597,-300.0,0.00025082,2]
[358223189,1744857032606,-280.0,0.000253,10]
[358223190,1744857032614,-1407.80841231,0.00027,14]
[358223192,1744857032622,-391.0,0.0002783,15]
[358223193,1744857032632,-1000.0,0.00028479,5]
[358223194,1744857032641,-152.78948001,0.000285,7]
[358223195,1744857032650,-385.56460815,0.00029,6]
[358223196,1744857032660,-157.97986937,0.0003,60]
[358223197,1744857032670,-1002.05803327,0.0003,5]
[358223198,1744857032680,-240.4262658,0.0003,60]
[358223199,1744857032689,-457.0,0.00030613,30]
[358223200,1744857032699,-2389.31396111,0.00031,120]
[358223201,1744857032709,-327.80980846,0.00031,5]
[358223202,1744857032718,-499.999999,0.0003121,2]
[358223203,1744857032728,-1802.58837277,0.00032,120]
[358223204,1744857032738,-300.0,0.00032,120]
[358223205,1744857032748,-158.16,0.00032402,2]
[358223206,1744857032758,-180.18,0.00032877,30]
[358223207,1744857032768,-235.90357219,0.000334,2]
[358223208,1744857032778,-152.11,0.000335,31]
[358223209,1744857032787,-152.11,0.000335,31]
[358223210,1744857032797,-152.11,0.000335,31]
[358223211,1744857032807,-152.11,0.000335,31]
[358223212,1744857032816,-152.11,0.000335,31]
[358223213,1744857032826,-152.11,0.000335,31]
[358223214,1744857032835,-152.11,0.000335,31]
[358223215,1744857032845,-152.11,0.000335,31]
[358223216,1744857032855,-152.11,0.000335,31]
[358223217,1744857032865,-152.11,0.000335,31]
[358223218,1744857032875,-300.0,0.00034,120]
[358223219,1744857032884,-314.27952624,0.00035,30]
[358223220,1744857032894,-156.30732792,0.00035,120]
[358223221,1744857032904,-152.26978909,0.00035,30]
[358223222,1744857032914,-300.0,0.00036,120]
[358223223,1744857032925,-190.4405561,0.000372,120]
[358223224,1744857032935,-300.0,0.00038,120]
[358223225,1744857032945,-505.73416239,0.00038498,5]
[358223226,1744857032959,-330.0,0.00038999,4]
[358223227,1744857032969,-2148.57839506,0.00039,120]
[358223228,1744857032981,-158.16,0.00039872,2]
[358223229,1744857032992,-406.59866521,0.0004,7]
[358223230,1744857033006,-723.38061955,0.0004,5]
[358223231,1744857033016,-300.0,0.0004,120]
[358223232,1744857033027,-2218.11000253,0.0004,7]
[358223233,1744857033039,-941.63408471,0.0004,7]
[358223234,1744857033050,-776.87834949,0.0004,5]
[358223235,1744857033060,-967.69171263,0.0004,20]
[358223236,1744857033071,-296.37626313,0.0004,30]
[358223237,1744857033084,-152.11,0.000408,31]
[358223238,1744857033095,-152.11,0.000408,31]
[358223239,1744857033105,-152.11,0.000408,31]
[358223240,1744857033115,-152.11,0.000408,31]
[358223241,1744857033126,-152.11,0.000408,31]
[358223242,1744857033138,-152.11,0.000408,31]
[358223243,1744857033149,-152.11,0.000408,31]
[358223244,1744857033159,-152.11,0.000408,31]
[358223245,1744857033169,-152.11,0.000408,31]
[358223246,1744857033179,-152.11,0.000408,31]
[358223247,1744857033189,-152.11,0.000408,31]
[358223248,1744857033198,-152.11,0.000408,31]
[358223249,1744857033207,-152.11,0.000408,31]
[358223250,1744857033217,-152.11,0.000408,31]
[358223251,1744857033229,-152.11,0.000408,31]
[358223252,1744857033239,-152.11,0.000408,31]
[358223253,1744857033249,-152.11,0.000408,31]
[358223254,1744857033259,-152.11,0.000408,31]
[358223255,1744857033270,-152.11,0.000408,31]
[358223256,1744857033279,-152.11,0.000408,31]
[358223257,1744857033289,-861.38760258,0.000408,30]
[358223258,1744857033299,-215.0,0.000408,5]
[358223259,1744857033308,-235.90357217,0.00041308,2]
[358223260,1744857033318,-300.0,0.00042,120]
[358223261,1744857033328,-582.0,0.000421,3]
[358223262,1744857033339,-1852.42,0.00042413,2]
[358223263,1744857033349,-944.1,0.00042797,2]
[358223264,1744857033359,-897.06,0.00042797,2]
[358223265,1744857033369,-214.0,0.00043,7]
[358223266,1744857033378,-622.53,0.00043542,2]
[358223267,1744857033388,-2116.30232491,0.0004367,5]
[358223268,1744857033398,-300.0,0.00044,120]
[358223269,1744857033408,-161.75365642,0.00044,30]
[358223270,1744857033417,-195.0,0.00044042,30]
[358223271,1744857033427,-150.0,0.00044042,30]
[358223272,1744857033437,-479.944463,0.00044042,15]
[358223273,1744857033446,-561.5977207,0.00044042,5]
[358223274,1744857033456,-1489.89032956,0.00044042,10]
[358223275,1744857033465,-1982.89608066,0.00044042,5]
[358223276,1744857033475,-703.77709406,0.00044042,10]
[358223277,1744857033485,-242.88987934,0.00044042,7]
[358223278,1744857033495,-618.62402744,0.00044042,6]
[358223279,1744857033504,-957.30848434,0.00044042,20]
[358223280,1744857033514,-664.45989508,0.00044042,10]
[358223281,1744857033523,-530.14024969,0.00044042,7]
[358223282,1744857033532,-2112.06890773,0.00044042,120]
[358223283,1744857033542,-975.99279448,0.00044042,5]
[358223284,1744857033552,-801.26836348,0.00044042,5]
[358223285,1744857033561,-874.22022032,0.00044042,2]
[358223286,1744857033571,-591.57660575,0.00044042,5]
[358223287,1744857033580,-561.99616697,0.00044042,10]
[358223288,1744857038487,-357.53873243,0.00044042,10]
[358223289,1744857040390,-80.4651006,0.00044042,10]
[358223290,1744857040402,-867.19918816,0.00044042,7]
[358223291,1744857040656,-1022.24230006,0.00044042,7]
[358223292,1744857040671,-460.43146683,0.00044042,120]
[358223293,1744857040687,-2101.85,0.00044042,120]
[358223299,1744857043437,-459.35155825,0.00044042,120]
[358223300,1744857043448,-1978.44775922,0.00044042,120]
[358223301,1744857043457,-1033.93881715,0.00044042,7]
[358223302,1744857043466,-1280.29659287,0.00044042,4]
[358223303,1744857043476,-463.66741013,0.00044042,7]
[358223304,1744857043487,-4851.6315365,0.00044042,2]
[358223305,1744857043497,-405.1473817,0.00044042,120]
[358223306,1744857043517,-27.5887549,0.00044042,120]
[358223307,1744857043526,-3527.04111603,0.00044042,120]
[358223308,1744857043535,-218.39799719,0.00044042,5]
[358223309,1744857043545,-4743.41973647,0.00044042,2]
[358223310,1744857043556,-294.07271488,0.00044042,2]
[358223311,1744857043565,-4943.67687539,0.00044042,120]
[358223312,1744857043577,-1932.65133973,0.00044042,120]
[358223313,1744857043586,-714.6620804,0.00044042,120]
[358223314,1744857043595,-1078.61063024,0.00044042,5]
[358223315,1744857043604,-275.0,0.00044042,14]
[358223316,1744857043614,-432.06190101,0.00044042,7]
[358223317,1744857043625,-67.93809899,0.00044042,7]
[358223318,1744857043635,-866.03690101,0.00044042,30]
[358223319,1744857043653,-434.13565478,0.00044042,30]
[358223320,1744857043663,-216.53580918,0.00044042,7]
[358223321,1744857043672,-800.0,0.00044042,5]
[358223322,1744857043681,-337.18812057,0.00044042,20]
[358223324,1744857043690,-563.14096784,0.00044042,5]
[358223325,1744857043698,-608.5483811,0.00044042,2]
[358223326,1744857043707,-302.77099938,0.00044042,14]
[358223327,1744857043716,-499.01700077,0.00044042,120]
[358223328,1744857043725,-1997.55640324,0.00044042,30]
[358223329,1744857043737,-151.0,0.00045,120]
[358223330,1744857043746,-43.46029996,0.00045,120]
[358223331,1744857043764,-107.53970004,0.00045,120]
[358223332,1744857043773,-283.29594552,0.00045,30]
[358223333,1744857043783,-764.68820525,0.00045,120]
[358223334,1744857043792,-183.36178805,0.00045,30]
[358223335,1744857043801,-2126.12,0.00045,5]
[358223336,1744857043810,-1228.16,0.00045043,5]
[358223337,1744857043819,-2000.0,0.00045816,120]
[358223338,1744857043828,-152.0,0.00045986,3]
[358223339,1744857043837,-300.0,0.00046,120]
[358223340,1744857043847,-314.5102457,0.00047,14]
[358223341,1744857043856,-150.00000008,0.00047318,7]
[358223342,1744857043866,-158.16,0.00047342,2]
[358223343,1744857043875,-159.28928428,0.000475,120]
[358223344,1744857043884,-152.0,0.0004764,4]
[358223345,1744857043893,-436.49467353,0.0004788,100]
[358223346,1744857043903,-300.0,0.00048,120]
[358223347,1744857043912,-295.64086591,0.00048,120]
[358223348,1744857043921,-1359.01973989,0.00048,120]
[358223349,1744857043931,-899.1,0.00048082,120]
[358223350,1744857043939,-152.11,0.000481,45]
[358223351,1744857043948,-152.11,0.000481,45]
[358223352,1744857043957,-152.11,0.000481,45]
[358223353,1744857043966,-152.11,0.000481,45]
[358223354,1744857043975,-152.11,0.000481,45]
[358223355,1744857043986,-152.11,0.000481,45]
[358223356,1744857043995,-152.11,0.000481,45]
[358223357,1744857044009,-152.11,0.000481,45]
[358223358,1744857044019,-152.11,0.000481,45]
[358223359,1744857044028,-152.11,0.000481,45]
[358223360,1744857044037,-152.11,0.000481,45]
[358223361,1744857044048,-152.11,0.000481,45]
[358223362,1744857044057,-152.11,0.000481,45]
[358223363,1744857044066,-152.11,0.000481,45]
[358223364,1744857044076,-152.11,0.000481,45]
[358223365,1744857044084,-152.11,0.000481,45]
[358223366,1744857044093,-152.11,0.000481,45]
[358223367,1744857044103,-152.11,0.000481,45]
[358223368,1744857044113,-152.11,0.000481,45]
[358223369,1744857044122,-152.11,0.000481,45]
[358223370,1744857044132,-773.54,0.00048576,2]
[358223371,1744857044141,-200.0,0.00048626,7]
[358223372,1744857044150,-153.95831355,0.0004888,120]
[358223373,1744857044159,-176.04,0.00049113,2]
[358223374,1744857044169,-15380.14975314,0.0004914,2]
[358223375,1744857045121,-443.88181818,0.0004914,2]
[358223376,1744857045132,-308.54923586,0.0004914,2]
[358223377,1744857045151,-4799.58353808,0.0004914,2]
[358223378,1744857045163,-2967.83565474,0.0004914,2]
[358223379,1744857045172,-235.90357217,0.00049215,2]
[358223380,1744857045182,-152.0,0.00049294,5]
[358223381,1744857045192,-369.0,0.00049315,30]
[358223382,1744857045201,-300.0,0.00049315,30]
[358223383,1744857045211,-300.0,0.00049315,30]
[358223384,1744857045220,-1000.0,0.00049315,120]
[358223385,1744857045229,-1000.0,0.00049348,120]
[358223386,1744857045239,-1000.0,0.00049381,120]
[358223387,1744857045248,-737.18427385,0.00049414,120]
[358223388,1744857045264,-262.81572615,0.00049414,120]
[358223389,1744857045274,-1000.0,0.00049447,120]
[358223390,1744857045283,-1000.0,0.00049479,120]
[358223391,1744857045293,-574.81121705,0.00049512,120]
[358223392,1744857045304,-425.18878295,0.00049512,120]
[358223393,1744857045313,-315.61121716,0.00049528,2]
[358223395,1744857046323,-151.0,0.00037833,2]
[358223396,1744857046334,-151.0,0.00037833,2]
[358223397,1744857046343,-96.27878284,0.00049528,2]
[358223398,1744857046353,-1345.955,0.00049545,87]
[358223399,1744857046363,-1000.0,0.00049545,120]
[358223400,1744857046373,-1000.0,0.00049578,120]
[358223401,1744857046382,-22.87473416,0.00049611,120]
[358223402,1744857046394,-977.12526584,0.00049611,120]
[358223403,1744857046404,-1000.0,0.00049644,120]
[358223404,1744857046414,-1000.0,0.00049677,120]
[358223405,1744857046423,-597.95696948,0.0004971,120]
[358223406,1744857046442,-402.04303052,0.0004971,120]
[358223407,1744857046452,-1000.0,0.00049742,120]
[358223408,1744857046462,-1000.0,0.00049775,120]
[358223409,1744857046471,-1000.0,0.00049808,120]
[358223410,1744857046481,-1000.0,0.00049841,120]
[358223411,1744857046492,-157.02213415,0.00049849,30]
[358223412,1744857046502,-1000.0,0.00049874,120]
[358223413,1744857046512,-250.0,0.00049896,120]
[358223414,1744857046521,-1479.82870471,0.000499,120]
[358223415,1744857046531,-1000.0,0.00049907,120]
[358223416,1744857046541,-1000.0,0.0004994,120]
[358223417,1744857046551,-1000.0,0.00049973,120]
[358223418,1744857046560,-222.29,0.0005,120]
[358223419,1744857046570,-515.99,0.0005,120]
[358223420,1744857046579,-4424.30569529,0.0005,2]
[358223421,1744857046589,-300.0,0.0005,120]
[358223422,1744857046599,-1462.91391036,0.0005,120]
[358223423,1744857046609,-518.15577591,0.0005,120]
[358223424,1744857046618,-767.50522837,0.0005,7]
[358223425,1744857046628,-1000.0,0.00050005,120]
[358223426,1744857046638,-1000.0,0.00050038,120]
[358223427,1744857046647,-1000.0,0.00050071,120]
[358223428,1744857046658,-1000.0,0.00050104,120]
[358223429,1744857046668,-1000.0,0.00050137,120]
[358223430,1744857046678,-1000.0,0.0005017,120]
[358223431,1744857046688,-1000.0,0.00050203,120]
[358223432,1744857046698,-1000.0,0.00050236,120]
[358223433,1744857046707,-1000.0,0.00050268,120]
[358223434,1744857046716,-1000.0,0.00050301,120]
[358223435,1744857046725,-1000.0,0.00050334,120]
[358223436,1744857046735,-1000.0,0.00050367,120]
[358223437,1744857046746,-1000.0,0.000504,120]
[358223438,1744857046756,-1000.0,0.00050433,120]
[358223439,1744857046765,-1000.0,0.00050466,120]
[358223440,1744857046775,-1000.0,0.00050494,120]
[358223441,1744857046784,-1000.0,0.00050499,120]
[358223442,1744857046794,-1000.0,0.00050532,120]
[358223443,1744857046805,-1000.0,0.00050564,120]
[358223444,1744857046815,-1000.0,0.00050597,120]
[358223445,1744857046824,-1000.0,0.0005063,120]
[358223446,1744857046833,-1000.0,0.00050663,120]
[358223447,1744857046842,-1000.0,0.00050696,120]
[358223448,1744857046850,-1000.0,0.00050729,120]
[358223449,1744857046859,-1000.0,0.00050762,120]
[358223450,1744857046868,-170.02,0.00050791,2]
[358223451,1744857046878,-1000.0,0.00050795,120]
[358223452,1744857046887,-1000.0,0.00050827,120]
[358223453,1744857046897,-773.54,0.0005084,2]
[358223454,1744857046906,-1000.0,0.0005086,120]
[358223455,1744857046915,-592.75508226,0.00050893,120]
[358223456,1744857046926,-407.24491774,0.00050893,120]
[358223457,1744857046936,-1000.0,0.00050926,120]
[358223458,1744857046946,-152.0,0.00050949,6]
[358223459,1744857046955,-98.57822125,0.00050959,120]
[358223460,1744857046967,-761.25738331,0.00050959,120]
[358223461,1744857046981,-140.16439544,0.00050959,120]
[358223462,1744857046991,-1000.0,0.00050992,120]
[358223463,1744857047004,-154.0,0.00051,120]
[358223464,1744857047014,-1000.0,0.00051025,120]
[358223465,1744857047024,-1000.0,0.00051058,120]
[358223466,1744857047034,-454.14,0.00051076,2]
[358223467,1744857047044,-1000.0,0.0005109,120]
[358223468,1744857047055,-1000.0,0.00051123,120]
[358223469,1744857047066,-1000.0,0.00051156,120]
[358223470,1744857047078,-1000.0,0.00051189,120]
[358223471,1744857047088,-251.0,0.000512,2]
[358223472,1744857047098,-857.0,0.000512,2]
[358223473,1744857047108,-1000.0,0.00051222,120]
[358223474,1744857047118,-1000.0,0.00051255,120]
[358223475,1744857047128,-1000.0,0.00051288,120]
[358223476,1744857047139,-1000.0,0.00051321,120]
[358223477,1744857047149,-1000.0,0.00051353,120]
[358223478,1744857047160,-1000.0,0.00051386,120]
[358223479,1744857047171,-1000.0,0.00051419,120]
[358223480,1744857047181,-1000.0,0.00051452,120]
[358223481,1744857047190,-1000.0,0.00051485,120]
[358223482,1744857047200,-1000.0,0.00051518,120]
[358223483,1744857047210,-1000.0,0.00051551,120]
[358223484,1744857047221,-1000.0,0.00051584,120]
[358223485,1744857047231,-1000.0,0.00051616,120]
[358223486,1744857047242,-1000.0,0.00051649,120]
[358223487,1744857047252,-1000.0,0.00051682,120]
[358223488,1744857047262,-1000.0,0.00051715,120]
[358223489,1744857047272,-1000.0,0.00051748,120]
[358223490,1744857047282,-1016.12093814,0.00051781,120]
[358223491,1744857047292,-999.999999,0.00051888,120]
[358223492,1744857047304,-170.95943535,0.00051944,28]
[358223493,1744857047314,-206.02987345,0.00051944,31]
[358223494,1744857047324,-782.10200105,0.00051954,15]
[358223495,1744857047335,-485.10836352,0.00051954,15]
[358223496,1744857047346,-301.6,0.00052,120]
[358223497,1744857047357,-2011.98,0.00052,120]
[358223498,1744857047368,-2458.62351458,0.00052,120]
[358223499,1744857047378,-1020.49345065,0.00052,120]
[358223500,1744857047389,-300.0,0.00052,120]
[358223501,1744857047401,-2153.45074942,0.00052,120]
[358223502,1744857047413,-150.0,0.00052027,30]
[358223503,1744857047424,-175575.14599632,0.00052044,64]
[358223504,1744857047434,-330.31512608,0.00052044,64]
[358223505,1744857047445,-22257.6316766,0.00052044,4]
[358223506,1744857047455,-400637.370178,0.00052044,4]
[358223507,1744857047467,-292099.051728,0.00052044,4]
[358223508,1744857047477,-500.0,0.00052054,120]
[358223509,1744857047487,-500.0,0.00052054,120]
[358223510,1744857047497,-373.88335357,0.00052054,120]
[358223511,1744857047508,-529.572845,0.00052054,120]
[358223512,1744857047518,-245.51695644,0.00052054,120]
[358223513,1744857047528,-500.0,0.00052054,120]
[358223514,1744857047538,-500.0,0.00052054,120]
[358223515,1744857047548,-500.0,0.00052054,120]
[358223516,1744857047558,-500.0,0.00052054,120]
[358223517,1744857047568,-500.0,0.00052054,120]
[358223518,1744857047577,-500.0,0.00052054,120]
[358223519,1744857047588,-500.0,0.00052054,120]
[358223520,1744857047599,-500.0,0.00052054,120]
[358223521,1744857047609,-500.0,0.00052054,120]
[358223522,1744857047619,-300.0,0.00052054,120]
[358223523,1744857047629,-500.0,0.00052054,120]
[358223524,1744857047639,-500.0,0.00052054,120]
[358223525,1744857047650,-500.0,0.00052054,120]
[358223526,1744857047663,-500.0,0.00052054,120]
[358223527,1744857047673,-515.05,0.00052054,120]
[358223528,1744857047684,-500.0,0.00052054,120]
[358223529,1744857047693,-500.0,0.00052054,120]
[358223530,1744857047704,-500.0,0.00052054,120]
[358223531,1744857047713,-500.0,0.00052054,120]
[358223532,1744857047723,-499.45882593,0.00052054,120]
[358223533,1744857047734,-500.0,0.00052054,120]
[358223534,1744857047744,-500.0,0.00052054,120]
[358223535,1744857047756,-500.0,0.00052054,120]
[358223536,1744857047767,-500.0,0.00052054,120]
[358223537,1744857047777,-520.8400255,0.00052054,120]
[358223538,1744857047787,-523.69079434,0.00052054,120]
[358223539,1744857047801,-511.23139775,0.00052054,120]
[358223540,1744857047812,-500.0,0.00052054,3]
[358223541,1744857047823,-500.0,0.00052054,120]
[358223542,1744857047833,-500.0,0.00052054,120]
[358223543,1744857047844,-136716.53,0.00052054,7]
[358223544,1744857047855,-500.0,0.00052054,120]
[358223545,1744857047865,-500.0,0.00052054,120]
[358223546,1744857047876,-286.12421358,0.00052054,120]
[358223547,1744857047886,-500.0,0.00052054,120]
[358223548,1744857047896,-500.0,0.00052054,120]
[358223549,1744857047907,-500.0,0.00052054,120]
[358223550,1744857047917,-500.0,0.00052054,120]
[358223551,1744857047928,-500.0,0.00052054,120]
[358223552,1744857047939,-500.0,0.00052054,120]
[358223553,1744857047949,-500.0,0.00052054,120]
[358223554,1744857047960,-500.0,0.00052054,120]
[358223555,1744857047970,-500.0,0.00052054,120]
[358223556,1744857047979,-500.0,0.00052054,120]
[358223557,1744857047990,-500.0,0.00052054,120]
[358223558,1744857048003,-500.0,0.00052054,120]
[358223559,1744857048016,-500.0,0.00052054,120]
[358223560,1744857048028,-500.0,0.00052054,120]
[358223561,1744857048040,-500.0,0.00052054,120]